Cogmind - Beta 15 @@@ ROGUE MODE // 2025.05.28 @ 13:03:30 Player: BVrutally Odd Result: Destroyed by G-73 Enforcer with Phase Gun Performance ------------- Evolutions (6) 3000 Regions Visited (21) 4200 Robots Destroyed (354) 1770 Value Destroyed (13146) 13146 Prototype IDs (54) 1080 Alien Tech Used (0) 0 Bonus (4910) 4910 TOTAL SCORE: 28106 Bonus ------- High Alert Combat Kills 1107 Follower Combat Kills 35 Aligned with FarCom 300 Met Warlord at Base 500 MAIN.C Attacked Warlord 500 Warlord Defense Kills 2618 Friendly Fire -150 Cogmind --------- Core Integrity 0/1150 Matter 267/300 Energy 5/100 System Corruption 11% Temperature Danger (417) Movement Core (1050) Ox20 Location -4/Factory Parts ------- > --- POWER (2) -------- (None) > --- PROPULSION (5) --- (None) > --- UTILITY (8) ------ High-capacity Storage Unit Experimental Armor Integrity Analyzer > --- WEAPON (4) ------- Firepult > --- INVENTORY (20) --- Improved Treads Medium Treads IFF Parser Improved Weapon Cycler Hacking Drone Bay (1/1) Proton Cannon Proton Cannon Proton Cannon Mini Grenade Launcher GAL Module Peak State ------------ > --- POWER ------------ Vortex Chain Reactor > --- PROPULSION ------- Advanced Treads Armored Medium Treads Advanced Medium Treads Armored Huge Wheel > --- UTILITY ---------- Advanced Heat Sink Experimental Heat Sink Huge Storage Unit Core Analyzer Experimental Armor Integrity Analyzer Improved Weapon Cycler Experimental Phase Shifter Advanced Shield Generator > --- WEAPON ----------- Cooled Plasma Cannon Neutron Cannon Hardcell Cannon Hardcell Cannon > --- INVENTORY -------- Improved Treads Improved Treads Improved Treads Armored Treads Armored Treads Medium Treads Myomer Leg Myomer Leg Myomer Leg Compact Wheel Advanced Heat Sink Advanced Heat Sink IFF Parser Improved Kinecellerator Improved Weapon Cycler Long-range Tractor Beam Hacking Drone Bay Long-range Proton Cannon Firepult Heavy Gauss Cannon Mini Grenade Launcher GAL Module [Rating: 132] Favorites ----------- Power Neutrino Core Engine Ion Engine Power Core Neutrino Core Reactor Vortex Chain Reactor Propulsion Armored Treads Treads Armored Treads Leg Myomer Leg Wheel Armored Huge Wheel Utility Huge Storage Unit Device Advanced Heat Sink Storage Huge Storage Unit Processor Advanced Targeting Computer Protection Improved Medium Armor Plating Weapon Minigun Energy Gun Improved Medium Laser Energy Cannon Cooled Plasma Cannon Ballistic Gun Minigun Ballistic Cannon Gauss Cannon Launcher Mini Grenade Launcher Slashing Weapon Chainsword Build | -11 -10 -9 -9 -9 -8 -8 -8 -7 -7 -7 -7 -6 -6 -6 -6 -5 -5 -5 -5 -4 -4 ------- Run | Yrd Mat Mat Min Exi Min Mat Sto Fac Low Low Zio Pro Fac Low Low Fac Upp Upp War Pro Fac Slots Evolved 12 | . . 2 . . . 2 . 2 . . . . 2 . . 2 . . . . 2 Power 1 | . . . . . . . . . . . . . . . . . . . . . 1 Propulsion 3 | . . 1 . . . 1 . . . . . . . . . . . . . . 1 Utility 6 | . . . . . . 1 . 1 . . . . 2 . . 2 . . . . . Weapon 2 | . . 1 . . . . . 1 . . . . . . . . . . . . . Parts Attached 165 | 7 7 22 . 2 1 20 18 5 4 . 7 2 12 3 1 16 . 1 7 1 29 Power 14 | 1 1 3 . . . 3 . 1 1 . . . 1 . . . . . . . 3 Engine 10 | 1 1 3 . . . 3 . 1 . . . . 1 . . . . . . . . Core 2 | . . . . . . . . . 1 . . . . . . . . . . . 1 Reactor 2 | . . . . . . . . . . . . . . . . . . . . . 2 Propulsion 45 | 2 1 5 . 2 . 11 7 . 1 . . . 1 . . 2 . . 1 . 12 Treads 30 | 2 1 3 . 1 . 9 7 . 1 . . . . . . 1 . . . . 5 Leg 4 | . . . . . . . . . . . . . . . . . . . . . 4 Wheel 11 | . . 2 . 1 . 2 . . . . . . 1 . . 1 . . 1 . 3 Hover . | . . . . . . . . . . . . . . . . . . . . . . Flight . | . . . . . . . . . . . . . . . . . . . . . . Utility 55 | 2 3 2 . . 1 2 3 4 1 . 4 1 5 2 1 8 . . 6 1 9 Device 30 | 1 2 . . . . . . 1 . . 1 1 3 2 1 5 . . 4 1 8 Storage 3 | 1 1 . . . . . . . . . . . . . . . . . . . 1 Processor 11 | . . . . . . 1 1 2 . . 3 . 2 . . 1 . . 1 . . Hackware . | . . . . . . . . . . . . . . . . . . . . . . Protection 11 | . . 2 . . 1 1 2 1 1 . . . . . . 2 . . 1 . . Artifact . | . . . . . . . . . . . . . . . . . . . . . . Weapon 51 | 2 2 12 . . . 4 8 . 1 . 3 1 5 1 . 6 . 1 . . 5 Energy Gun 11 | 1 1 2 . . . 2 2 . . . 1 1 . . . . . . . . 1 Energy Cannon 10 | . . 2 . . . . . . . . 1 . . . . 5 . . . . 2 Ballistic Gun 14 | 1 . 5 . . . . 5 . . . 1 . 2 . . . . . . . . Ballistic Cannon 7 | . . 1 . . . . . . 1 . . . 1 . . 1 . 1 . . 2 Launcher 7 | . 1 2 . . . 1 1 . . . . . 1 1 . . . . . . . Special Weapon . | . . . . . . . . . . . . . . . . . . . . . . Impact Weapon . | . . . . . . . . . . . . . . . . . . . . . . Slashing Weapon 2 | . . . . . . 1 . . . . . . 1 . . . . . . . . Piercing Weapon . | . . . . . . . . . . . . . . . . . . . . . . Special Melee Weapon . | . . . . . . . . . . . . . . . . . . . . . . Unidentified Prototypes 27 | . . 5 . . . 1 3 . . . 5 . 4 . . 4 . . 4 . 1 Corrupted Parts 1 | . . . . . . . . . . . . 1 . . . . . . . . . System Corruption 6 | . . . . . . . . . . . . 6 . . . . . . . . . Parts Lost 57 | . 1 3 . . 1 2 2 . 3 . 1 . 1 . . 1 . . 3 7 32 Power 5 | . . . . . . . 1 . 1 . . . . . . . . . . 1 2 Propulsion 17 | . 1 1 . . . 1 . . . . . . . . . . . . . 1 13 Utility 22 | . . 1 . . 1 1 1 . 1 . 1 . 1 . . 1 . . 2 3 9 Weapon 13 | . . 1 . . . . . . 1 . . . . . . . . . 1 2 8 Highest Loss Streak 13 | . 1 2 . . 1 1 1 . 2 . 1 . 1 . . 1 . . 3 7 13 To Critical Strikes 2 | . . . . . . . . . . . . . . . . . . . . . 2 Average Backups 22 | 3 13 24 24 24 23 23 24 23 22 24 23 23 22 23 23 22 22 22 21 17 14 Power . | . 1 1 1 1 1 . . . . . . . . . . . 1 1 . 1 . Propulsion 6 | 1 3 5 6 5 5 4 5 6 6 8 7 6 6 6 6 6 6 6 6 6 6 Utility 8 | . 4 9 9 9 8 8 8 8 8 8 8 9 8 9 10 8 8 8 7 5 4 Weapon 7 | . 4 8 8 8 9 10 10 9 8 8 7 7 7 7 7 7 7 7 6 4 4 Tool/Special . | . . . . . . . . . . . . . . . . . . . . . . Unused Backups 40 | . . 13 . . . 2 6 3 . . 3 1 2 . . 5 . . 1 . 4 Power . | . . . . . . . . . . . . . . . . . . . . . . Propulsion 14 | . . 4 . . . 1 4 . . . 1 1 . . . 2 . . . . 1 Utility 14 | . . 3 . . . . 2 3 . . 1 . 1 . . 3 . . 1 . . Weapon 12 | . . 6 . . . 1 . . . . 1 . 1 . . . . . . . 3 Tool/Special . | . . . . . . . . . . . . . . . . . . . . . . Average Slot Usage (%) 96 | . 99 99 100 100 100 97 99 98 97 100 96 100 95 93 93 93 94 94 93 79 83 Engine 4 | . 14 11 11 11 11 8 8 5 . . . . . . . . . . . . . Core 3 | . . . . . . . . . 4 7 7 7 6 6 6 5 5 5 5 3 . Treads 21 | . 27 21 22 22 22 24 36 30 30 30 30 30 18 13 13 10 11 11 10 1 15 Wheel 5 | . . 10 11 11 11 11 . . . . . . 3 6 6 5 5 5 5 9 4 Device 8 | . 14 9 . . . . . 7 1 . 4 7 10 13 13 17 17 17 16 15 21 Storage 8 | . 14 11 11 11 11 9 9 7 7 7 7 7 6 6 6 5 5 5 5 5 5 Processor 9 | . . . . . . 8 9 7 15 15 15 15 20 20 20 16 17 17 17 14 9 Protection 4 | . . 1 11 11 11 8 8 7 5 7 2 . 2 . . 4 5 5 5 4 1 Energy Gun 3 | . 26 8 . . . 1 2 . . . . 4 . . . . . . . . . Energy Cannon 4 | . . 8 . . . . . . . . . . . . . . 17 17 16 13 9 Ballistic Gun 15 | . 1 8 33 33 33 24 23 29 24 23 18 19 19 20 20 16 . . . . . Ballistic Cannon 4 | . . 6 . . . . . . 5 7 6 4 2 . . . 5 5 5 5 7 Peak Build Rating 132 | 7 12 20 20 22 22 32 40 46 52 52 67 62 78 74 74 97 97 98 103 104 132 Average Rating 50 | 5 9 16 20 20 21 25 36 45 48 52 53 58 71 73 74 84 97 97 99 92 110 On Entrance 51 | . 7 12 20 20 22 22 32 34 46 52 52 59 62 72 74 74 96 97 98 102 77 Naked Turns . | . . . . . . . . . . . . . . . . . . . . . . Heaviest Build 170 | 13 90 100 100 100 100 102 106 104 117 117 117 111 119 117 117 140 140 141 141 144 170 Greatest Support 127 | 40 40 16 10 16 16 82 88 80 88 88 88 88 88 28 28 28 28 28 56 56 127 Greatest Overweight (x) 9 | . 4 9 9 9 6 6 1 1 1 1 1 1 4 4 4 4 4 5 5 4 9 Average Overweight (x) 3 | . 1 7 9 7 6 2 1 1 1 1 1 1 3 4 4 4 4 4 4 2 3 Largest Inventory Capacity 25 | 8 25 25 25 25 25 25 25 25 25 25 25 25 25 25 25 25 25 25 25 25 25 Average Capacity 24 | 7 22 25 25 25 25 25 25 25 25 25 25 25 25 25 25 25 25 25 25 25 23 Most Carried 25 | 4 22 25 24 25 25 25 25 25 25 25 25 25 25 25 25 25 25 25 25 22 23 Average Carried 23 | 3 13 24 24 24 24 24 24 24 23 25 24 24 24 24 25 24 25 25 24 20 16 Final Capacity 25 | 8 25 25 25 25 25 25 25 25 25 25 25 25 25 25 25 25 25 25 25 25 20 Final Carried 25 | 4 22 24 24 25 25 25 25 25 25 25 25 25 25 25 25 25 25 25 22 19 10 Class Distribution -------------------- 68% | Gunner 10% | Skirmisher 7% | Mutant 6% | Scavenger-Tank 3% | Scavenger-Skirmisher Dominant Class ---------------- Mutant | -10/Materials Gunner | -9/Materials Scavenger-Tank | -9/Mines Scavenger-Tank | -9/Exiles Skirmisher | -8/Mines Scavenger-Skirmisher | -8/Materials Skirmisher | -8/Storage Skirmisher | -7/Factory Gunner | -7/Lower Caves Gunner | -7/Lower Caves Gunner | -7/Zion Gunner | -6/Proximity Caves Gunner | -6/Factory Gunner | -6/Lower Caves Gunner | -6/Lower Caves Gunner | -5/Factory Gunner | -5/Upper Caves Gunner | -5/Upper Caves Gunner | -5/Warlord Gunner | -4/Proximity Caves Gunner | -4/Factory Resources | -11 -10 -9 -9 -9 -8 -8 -8 -7 -7 -7 -7 -6 -6 -6 -6 -5 -5 -5 -5 -4 -4 ----------- Run | Yrd Mat Mat Min Exi Min Mat Sto Fac Low Low Zio Pro Fac Low Low Fac Upp Upp War Pro Fac Matter Collected 9273 | 287 120 872 60 . 365 740 792 407 397 192 125 288 820 265 18 1011 107 58 650 290 1409 Remotely 1783 | . . . . . . . . . . . . . . . . 48 . . 458 242 1035 Salvage Created 15246 | 76 497 1685 127 . 736 833 1473 765 232 47 . 486 1016 358 26 1759 77 . 758 535 3760 Parts 714 | 10 37 95 5 . 34 58 86 32 11 1 . 32 53 12 1 70 1 . 40 12 124 Haulers Intercepted 28 | . 2 6 . . . 5 5 1 . . . . 1 . . 5 . . . . 3 Recyclers Shooed 17 | 1 2 1 . . . . 1 . . . . . 2 . . 2 . . . . 8 Parts Field Recycled . | . . . . . . . . . . . . . . . . . . . . . . Retrieved Matter . | . . . . . . . . . . . . . . . . . . . . . . Parts Self-Destructed 59 | . . . . . . . . . 9 2 4 21 . 7 . . . 4 . 12 . Prevented 16 | . . . . . . . . . . 2 . 14 . . . . . . . . . Kills | -11 -10 -9 -9 -9 -8 -8 -8 -7 -7 -7 -7 -6 -6 -6 -6 -5 -5 -5 -5 -4 -4 ------- Run | Yrd Mat Mat Min Exi Min Mat Sto Fac Low Low Zio Pro Fac Low Low Fac Upp Upp War Pro Fac Combat Hostiles Destroyed 246 | . 10 25 3 . 12 16 20 6 7 2 . 17 11 9 . 16 . . 25 14 53 Guns 97 | . 7 11 3 . 12 10 14 6 3 1 . 5 9 1 . 15 . . . . . Cannons 41 | . . 4 . . . . . . 1 1 . . 2 . . 1 . . 7 6 19 AOE 85 | . 3 10 . . . 6 6 . 3 . . 10 . 8 . . . . 18 8 13 Classes Destroyed 23 | 1 7 4 . . . . . 1 2 . . 1 . 1 . 1 . . 3 . 2 Worker 18 | . 1 3 . . 2 2 2 . . . . . 1 . . 2 . . . . 5 Builder 15 | . 1 1 . . 2 1 1 . . . . . . . . 1 . . . . 8 Tunneler 9 | 3 1 2 . . 1 . . . . . . . 1 . . 1 . . . . . Hauler 28 | . 2 6 . . . 5 5 1 . . . . 1 . . 5 . . . . 3 Recycler 21 | . 1 3 . . . . 4 4 . . . . 3 . . 3 . . . . 3 Minesweeper 2 | . . . . . . . . . . . . 1 . 1 . . . . . . . Mechanic 1 | . . . . . . . . . . . . . . . . 1 . . . . . Operator 3 | . . 2 . . . . 1 . . . . . . . . . . . . . . Watcher 9 | . 1 4 . . . . . 2 . . . . 1 . . . . . . . 1 Swarmer 50 | . 3 3 . . . 3 4 . 3 . . 11 . 3 . 5 . . 7 . 8 Saboteur 2 | . . . . . . . . . . . . . . . . . . . 2 . . Grunt 93 | . 7 12 2 . 10 10 8 4 2 . . 4 5 . . 1 . . 6 9 13 Brawler 8 | . . 1 . . 1 . . . . . . . . . . . . . . 2 4 Duelist 6 | . . 1 1 . 1 . . . . . . . . . . . . . 1 . 2 Protector 4 | . . . . . . . . . . . . . . . . . . . 2 . 2 Sentry 27 | . . 8 . . . 3 8 1 . . . 1 1 . . 2 . . . 1 2 Specialist 5 | . . . . . . . . . . . . . . . . . . . . . 5 Hunter 14 | . . . . . . . . . 1 2 . 1 . . . 1 . . 1 . 8 Programmer 26 | . . . . . . . . 1 . . . . 5 . . 7 . . 4 2 7 Heavy 1 | . . . . . . . . . . . . . . . . . . . . . 1 Behemoth 2 | . . . . . . . . . 1 . . . . . . . . . . . 1 Executioner 2 | . . . . . . . . . . . . . . . . . . . 2 . . Decomposer 1 | . . . . . . . . . . . . . . . 1 . . . . . . Packrat 1 | . . . . . . . . . . . . . . . . . 1 . . . . Thug 5 | . . . . . . . . . . . . . . 5 . . . . . . . Savage 2 | . . . . . . . . . . . . . . 2 . . . . . . . Mutant 1 | . . . . . . . . . . . . . . 1 . . . . . . . Best Kill Streak 15 | 1 5 12 3 . 4 11 6 3 3 1 . 4 5 6 . 8 . . 11 7 15 Combat Bots Only 11 | . 3 10 3 . 3 8 5 3 3 1 . 4 3 6 . 5 . . 11 7 11 Max Kills in Single Turn 4 | 1 2 3 2 . 3 3 3 2 2 1 . 3 1 3 1 2 1 . 2 3 4 Gunslinging 1 | . . . 1 . . . 1 . . . . . . . . . . . . . . Exploded 4 | . 1 3 . . . 3 3 . 2 . . 3 . 3 . . . . 2 3 4 Melee . | . . . . . . . . . . . . . . . . . . . . . . Uniques/NPCs Destroyed . | . . . . . . . . . . . . . . . . . . . . . . Combat | -11 -10 -9 -9 -9 -8 -8 -8 -7 -7 -7 -7 -6 -6 -6 -6 -5 -5 -5 -5 -4 -4 -------- Run | Yrd Mat Mat Min Exi Min Mat Sto Fac Low Low Zio Pro Fac Low Low Fac Upp Upp War Pro Fac Hostile Shots Fired 1375 | . 77 60 7 . 39 45 74 31 47 22 . 93 66 21 . 85 . . 70 95 543 Missed 452 | . 18 18 . . 13 19 13 12 17 4 . 36 18 6 . 24 . . 28 21 205 Hits 923 | . 59 42 7 . 26 26 61 19 30 18 . 57 48 15 . 61 . . 42 74 338 Melee 15 | . . 2 . . . . . . . . . . . . . . . . . 1 12 Projectile 908 | . 59 40 7 . 26 26 61 19 30 18 . 57 48 15 . 61 . . 42 73 326 Critical Strikes 35 | . . . . . . . 2 3 1 . . 1 . 2 . 4 . . 3 5 14 Part Disruptions 2 | . . . . . . . . . . . . . 1 . . . . . 1 . . Damage Taken 14774 | . 692 595 77 . 417 427 915 224 728 222 . 641 540 248 . 809 . . 825 1384 6030 Core 2056 | . 143 140 11 . 44 37 62 . 25 10 . 25 42 18 . 113 . . 111 100 1175 Absorbed by Shields 1284 | . . . . . . . . . . . . 229 92 64 . 298 . . 238 180 183 Regen/Repaired (Parts) 1577 | . . . . . . . . . . . 1346 . . . . 207 . . 24 . . Core Remaining (%) 75 | 100 42 . . . 51 . 82 . . . . 91 . . 92 . . . . 67 . Volleys Fired 590 | 17 46 62 6 . 34 41 59 20 21 12 . 31 36 9 . 53 2 . 37 25 79 Largest 4 | 2 2 3 3 . 3 3 3 4 4 4 . 4 4 3 . 4 4 . 4 4 4 Hottest 281 | 60 105 154 69 . 69 69 117 100 115 115 . 114 120 80 . 131 152 . 164 160 281 Shots Fired 1624 | 34 84 172 18 . 102 113 160 80 75 42 . 60 124 13 . 175 8 1 92 59 212 Gun 1129 | 34 77 140 18 . 102 108 153 80 65 30 . 46 109 6 . 148 . . . . 13 Cannon 400 | . . 20 . . . . . . 7 12 . 4 15 . . 27 8 1 68 46 192 Launcher 95 | . 7 12 . . . 5 7 . 3 . . 10 . 7 . . . . 24 13 7 Special . | . . . . . . . . . . . . . . . . . . . . . . Kinetic 1167 | 17 4 130 18 . 102 108 136 80 72 42 . 22 124 6 . 169 2 . 22 15 98 Thermal 310 | 17 73 30 . . . . 17 . . . . . . . . . 6 1 46 31 89 Explosive 95 | . 7 12 . . . 5 7 . 3 . . 10 . 7 . . . . 24 13 7 Electromagnetic 52 | . . . . . . . . . . . . 28 . . . 6 . . . . 18 Robot Hit Streak 25 | 10 10 13 5 . 11 17 15 13 14 5 . 11 19 13 . 25 5 . 8 14 7 Robot Miss Streak 5 | 5 4 3 2 . 2 5 3 2 2 2 . 3 4 . . 3 1 . 3 4 5 Penetration Max 1 | . . . . . . . . . . . . . 1 . . 1 . . . . . Secondary Targets 12 | . 1 . 2 . 1 2 3 1 . . . 1 . . . 1 . . . . . Max Gunslinging Chain 2 | . 1 . 2 . 1 1 1 1 . . . 1 . . . 1 . . . . . Shots Hit Robots 995 | 18 53 101 12 . 67 75 94 45 53 25 . 38 91 10 1 118 2 . 47 39 106 Core Hits 738 | 6 30 63 5 . 34 47 55 22 18 5 . 44 43 27 1 57 . . 71 46 164 Critical Kills 3 | . . 1 . . . 1 . . . . . . 1 . . . . . . . . Critical Parts Destroyed 8 | . . . . . 1 2 . . 1 . . . 2 . . 2 . . . . . Critical Strikes 29 | . . 1 . . 1 3 . . 2 1 . . 5 . . 5 . . 3 1 7 Destroy 11 | . . 1 . . 1 3 . . 1 . . . 3 . . 2 . . . . . Blast 15 | . . . . . . . . . 1 1 . . 2 . . . . . 3 1 7 Sever 3 | . . . . . . . . . . . . . . . . 3 . . . . . Melee Attacks 34 | . . . . . . 1 1 . . . . . 7 3 1 21 . . . . . Impact . | . . . . . . . . . . . . . . . . . . . . . . Slashing 34 | . . . . . . 1 1 . . . . . 7 3 1 21 . . . . . Piercing . | . . . . . . . . . . . . . . . . . . . . . . Sneak Attacks 13 | . . . . . . . . . . . . . 4 3 1 5 . . . . . Combat Hostiles . | . . . . . . . . . . . . . . . . . . . . . . Follow-up Attacks . | . . . . . . . . . . . . . . . . . . . . . . Damage Inflicted 36497 | 182 1119 2522 179 . 1104 1909 2233 814 1152 324 . 1557 2208 1395 66 2987 63 . 4804 2917 8962 Guns 12675 | 182 659 1362 179 . 1104 1152 1607 814 814 180 . 647 1626 86 . 1978 . . . . 285 Cannons 8654 | . . 240 . . . . . . 153 144 . 18 253 . . 542 63 . 1754 1174 4313 Explosions 14112 | . 459 915 . . . 757 609 . 185 . . 892 . 1086 . 89 . . 3050 1743 4327 Melee 996 | . . . . . . . . . . . . . 329 223 66 378 . . . . . Ramming 60 | . 1 5 . . . . 17 . . . . . . . . . . . . . 37 Kinetic 14860 | 85 19 1210 179 . 1104 1152 1512 814 967 324 . 163 1879 86 . 2418 . . 682 467 1799 Thermal 8802 | 97 640 392 . . . . 95 . . . . 41 . . . . 63 . 1072 707 5695 Explosive 10721 | . 459 915 . . . 757 609 . 185 . . 851 . 1086 . 89 . . 3050 1743 977 Electromagnetic 1058 | . . . . . . . . . . . . 502 . . . 102 . . . . 454 Impact . | . . . . . . . . . . . . . . . . . . . . . . Slashing 996 | . . . . . . . . . . . . . 329 223 66 378 . . . . . Piercing . | . . . . . . . . . . . . . . . . . . . . . . Highest Corruption 11 | . . . . . . . . . . . . 6 2 2 2 5 5 5 5 6 11 Average Corruption 3 | . . . . . . . . . . . . 6 2 2 2 2 5 5 4 5 3 Corruption Purged . | . . . . . . . . . . . . . . . . . . . . . . Corruption Blocked . | . . . . . . . . . . . . . . . . . . . . . . Effects 60 | . . . . . . . . . . . . . 2 7 2 4 13 9 2 14 7 Message Errors 7 | . . . . . . . . . . . . . . 2 1 . 1 . 1 2 . Matter Fused 17 | . . . . . . . . . . . . . . 1 1 1 4 5 . 4 1 Heat Flow Errors 10 | . . . . . . . . . . . . . 2 . . 1 3 . . 3 1 Energy Discharges 8 | . . . . . . . . . . . . . . 1 . . 2 1 . 2 2 Parts Fused 1 | . . . . . . . . . . . . . . . . . 1 . . . . Data Loss (minor) 8 | . . . . . . . . . . . . . . 2 . 1 1 . 1 1 2 Data Loss (major) 5 | . . . . . . . . . . . . . . 1 . . 1 2 . 1 . Misfires 1 | . . . . . . . . . . . . . . . . . . 1 . . . Misdirections 1 | . . . . . . . . . . . . . . . . . . . . . 1 Weapon Failures 2 | . . . . . . . . . . . . . . . . 1 . . . 1 . Overload Shots 1 | . . . . . . . . . . . . . . . . . . . 1 . . Overflow Damage 753 | . 1 10 . . . 7 10 . . . . 47 50 129 . 59 43 . 68 46 283 Projectiles 280 | . . . . . . . . . . . . . . . . 38 43 . 5 46 148 Explosions 324 | . 1 10 . . . 7 10 . . . . 47 . 51 . . . . 63 . 135 Melee 149 | . . . . . . . . . . . . . 50 78 . 21 . . . . . Knockbacks 21 | . . . . . . . . . . 1 . . 3 . . 5 . . 1 2 9 Impact . | . . . . . . . . . . . . . . . . . . . . . . Kinetic 18 | . . . . . . . . . . 1 . . 3 . . 3 . . 1 2 8 Secondary 3 | . . . . . . . . . . . . . . . . 2 . . . . 1 Self-Inflicted Damage 343 | . 58 39 . . . 31 1 . 27 . . . . 13 . . . . . . 174 Shots 20 | . 5 1 . . . 1 1 . 1 . . . . 1 . . . . . . 10 Rammed 5 | . 1 1 . . . . 2 . . . . . . . . . . . . . 1 Targets Rammed 6 | . 1 1 . . . . 2 . . . . . . . . . . . . . 2 Kicked 1 | . . . . . . . . . . . . . . . . . . . . . 1 Crushed . | . . . . . . . . . . . . . . . . . . . . . . Highest Temperature 437 | 20 156 336 48 . 72 34 423 121 240 258 . 213 224 . . 98 143 . 112 259 437 Average Temperature 66 | 13 39 62 23 . 19 16 92 26 66 114 . 91 33 . . 21 78 . 51 105 122 Received Heat Transfer 3256 | . 252 168 42 . 234 153 405 117 144 . . 140 141 113 . 37 . . 100 276 934 Effects 1 | . . . . . . . 1 . . . . . . . . . . . . . . Shutdowns 1 | . . . . . . . 1 . . . . . . . . . . . . . . Siege Activations . | . . . . . . . . . . . . . . . . . . . . . . Martial Activations . | . . . . . . . . . . . . . . . . . . . . . . Shielding Activations . | . . . . . . . . . . . . . . . . . . . . . . Robots Disrupted 1 | . . . . . . . . . . . . . . . . . . . . . 1 Combat Hostiles 1 | . . . . . . . . . . . . . . . . . . . . . 1 Robots Corrupted 3 | . . . . . . . . . . . . 3 . . . . . . . . . Combat Hostiles 2 | . . . . . . . . . . . . 2 . . . . . . . . . Parts Fried 5 | . . . . . . . . . . . . 3 . . . . . . . . 2 Impact Corruptions . | . . . . . . . . . . . . . . . . . . . . . . Robots Melted 22 | . . . . . . . . . . . . . . . . . . . . . 22 Combat Hostiles 21 | . . . . . . . . . . . . . . . . . . . . . 21 Parts Melted 88 | . 5 . . . . . . . . . . . . . . . . . . 2 81 Heat Transferred 23207 | 225 1513 777 . . . . 185 . . . . 50 . . . . 100 . 1314 1000 18043 Parts Sabotaged 10 | . . . . . . . . . . . . . . . . . . . . 3 7 Parts Stolen . | . . . . . . . . . . . . . . . . . . . . . . Parts Stripped . | . . . . . . . . . . . . . . . . . . . . . . Power Chain Reactions 2 | . . . . . . . . . . . . 1 . . . . . . . . 1 Alert | -11 -10 -9 -9 -9 -8 -8 -8 -7 -7 -7 -7 -6 -6 -6 -6 -5 -5 -5 -5 -4 -4 ------- Run | Yrd Mat Mat Min Exi Min Mat Sto Fac Low Low Zio Pro Fac Low Low Fac Upp Upp War Pro Fac Maximum Alert Level 4 | . . 2 . . . 1 2 1 . . . . . . . 1 . . . . 4 Low Security (%) 78 | 100 100 69 100 . 100 35 62 93 . . . . 100 . . 88 . . . . 36 Level 1 16 | . . 23 . . . 64 34 6 . . . . . . . 11 . . . . 17 Level 2 3 | . . 7 . . . . 3 . . . . . . . . . . . . . 7 Level 3 2 | . . . . . . . . . . . . . . . . . . . . . 37 Level 4 . | . . . . . . . . . . . . . . . . . . . . . . Level 5 . | . . . . . . . . . . . . . . . . . . . . . . High Security . | . . . . . . . . . . . . . . . . . . . . . . Max Security . | . . . . . . . . . . . . . . . . . . . . . . Peak Influence 1144 | 5 186 446 173 . 141 274 522 231 . . . . 91 . . 303 . . . . 1144 Initial 231 | . . . 173 . . 28 68 231 . . . . 91 . . . . . . . 75 Average 114 | . 60 117 79 . 69 190 155 62 . . . . 25 . . 69 . . . . 476 Influence Increases 7753 | 15 386 866 70 . 380 489 872 222 170 60 . 445 378 75 . 727 . . 500 340 1758 Destroy 0b10 Robot/C 4760 | . 200 500 60 . 240 320 420 140 140 40 . 340 220 60 . 320 . . 460 280 1020 Destroy 0b10 Robot/NC 550 | 15 35 105 . . 25 40 65 35 . . . 5 35 5 . 65 . . 10 . 110 Destroy Leader 972 | . 46 150 10 . 40 70 130 46 30 20 . 40 74 10 . 90 . . . 30 186 Allied During Kill 122 | . . . . . . . 122 . . . . . . . . . . . . . . Successful Hack 27 | . 13 4 . . . . . . . . . . 10 . . . . . . . . Disable Machine 375 | . . 45 . . . 30 30 . . . . . 30 . . 90 . . . . 150 Destroy Structure 602 | . 17 62 . . . 29 60 1 . . . . 9 . . 162 . . . . 262 Partial Spotted 15 | . . . . . . . . . . . . . . . . . . . . . 15 Lose Combat Pursuer 330 | . 75 . . . 75 . 45 . . . . 60 . . . . . . 30 30 15 Influence Decreases 6609 | 15 386 420 472 44 306 400 525 637 245 80 . 300 456 142 . 433 294 . 82 638 734 Entered New Map 1430 | . . . 273 44 . 46 95 279 36 4 . . 54 26 . . 110 . . 418 45 Time Decay 4621 | 15 376 400 199 . 296 334 410 340 199 76 . 300 382 116 . 423 184 . 52 150 369 Lost Part 530 | . 10 20 . . 10 20 20 . 10 . . . 10 . . 10 . . 30 70 320 Lost Ally 28 | . . . . . . . . 18 . . . . 10 . . . . . . . . Squads Dispatched 42 | . 2 2 . . . 2 4 3 . . . . 7 . . 5 . . . 1 16 Investigation 1 | . 1 . . . . . . . . . . . . . . . . . . . . Extermination 11 | . . . . . . . . 2 . . . . 4 . . 3 . . . . 2 Reinforcement 21 | . 1 1 . . . 1 2 1 . . . . 3 . . 2 . . . . 10 Assault 4 | . . 1 . . . . . . . . . . . . . . . . . 1 2 Garrison 5 | . . . . . . 1 2 . . . . . . . . . . . . . 2 Intercept . | . . . . . . . . . . . . . . . . . . . . . . Searches Triggered . | . . . . . . . . . . . . . . . . . . . . . . Construction Impeded 5 | . . . . . . . 1 . . . . . . . . . . . . . 4 Haulers Reinforced 2 | . . . . . . . . . . . . . 1 . . 1 . . . . . Active Scanning Responses . | . . . . . . . . . . . . . . . . . . . . . . Cargo Convoy Interrupts 2 | . . . . . . . . . . . . . . . . 1 . . . . 1 Stealth | -11 -10 -9 -9 -9 -8 -8 -8 -7 -7 -7 -7 -6 -6 -6 -6 -5 -5 -5 -5 -4 -4 --------- Run | Yrd Mat Mat Min Exi Min Mat Sto Fac Low Low Zio Pro Fac Low Low Fac Upp Upp War Pro Fac Distress Signals 19 | . 3 5 . . . 4 2 . . . . . 2 . . 1 . . . . 2 Communications Jammed . | . . . . . . . . . . . . . . . . . . . . . . Distress Signals . | . . . . . . . . . . . . . . . . . . . . . . Times Spotted 356 | . 20 36 3 . 16 18 31 9 7 2 . 21 22 9 . 24 . . 52 16 70 Peak Tracking Total 13 | . 5 10 3 . 3 4 4 5 3 1 . 5 3 5 . 5 . . 12 9 13 Tactical Retreats 13 | . 3 . . . 3 . 1 . . . . 2 . . . . . . 2 1 1 Traps | -11 -10 -9 -9 -9 -8 -8 -8 -7 -7 -7 -7 -6 -6 -6 -6 -5 -5 -5 -5 -4 -4 ------- Run | Yrd Mat Mat Min Exi Min Mat Sto Fac Low Low Zio Pro Fac Low Low Fac Upp Upp War Pro Fac Traps Triggered 10 | . 1 . . . . 5 1 . . . . . . . . . . . . . 3 Indirectly . | . . . . . . . . . . . . . . . . . . . . . . Trap Hack Attempts . | . . . . . . . . . . . . . . . . . . . . . . Triggered . | . . . . . . . . . . . . . . . . . . . . . . Disarmed . | . . . . . . . . . . . . . . . . . . . . . . Reprogrammed . | . . . . . . . . . . . . . . . . . . . . . . Reused . | . . . . . . . . . . . . . . . . . . . . . . Traps Extracted . | . . . . . . . . . . . . . . . . . . . . . . Installed 1 | . . . . . . . . . . . . 1 . . . . . . . . . Triggered . | . . . . . . . . . . . . . . . . . . . . . . Machines | -11 -10 -9 -9 -9 -8 -8 -8 -7 -7 -7 -7 -6 -6 -6 -6 -5 -5 -5 -5 -4 -4 ---------- Run | Yrd Mat Mat Min Exi Min Mat Sto Fac Low Low Zio Pro Fac Low Low Fac Upp Upp War Pro Fac Machines Disabled 26 | . . 3 . . . 2 2 . . . . . 2 . . 6 . . 1 . 10 Max in Single Turn 4 | . . 2 . . . 1 1 . . . . . 1 . . 3 . . 1 . 4 Garrison Access 3 | . . . . . . 1 1 . . . . . . . . . . . . . 1 Machines Repaired . | . . . . . . . . . . . . . . . . . . . . . . Machines Dismantled . | . . . . . . . . . . . . . . . . . . . . . . Machines Sabotaged . | . . . . . . . . . . . . . . . . . . . . . . Overloaded Fab Kills . | . . . . . . . . . . . . . . . . . . . . . . Hacking | -11 -10 -9 -9 -9 -8 -8 -8 -7 -7 -7 -7 -6 -6 -6 -6 -5 -5 -5 -5 -4 -4 --------- Run | Yrd Mat Mat Min Exi Min Mat Sto Fac Low Low Zio Pro Fac Low Low Fac Upp Upp War Pro Fac Machines Accessed 19 | . 2 1 . 2 . 1 4 . . 1 . . 2 . . 3 . 1 1 . 1 Terminals 8 | . 2 1 . . . . 3 . . . . . 1 . . 1 . . . . . Fabricators 2 | . . . . . . . . . . . . . 1 . . 1 . . . . . Repair Stations 1 | . . . . . . . . . . . . . . . . 1 . . . . . Recycling Units . | . . . . . . . . . . . . . . . . . . . . . . Scanalyzers . | . . . . . . . . . . . . . . . . . . . . . . Garrison Access 3 | . . . . . . 1 1 . . . . . . . . . . . . . 1 Total Hacks 28 | . 3 2 . 2 . 1 4 . . 1 . . 4 . . 7 . 1 1 . 2 Successful 19 | . 2 1 . 2 . 1 3 . . 1 . . 2 . . 4 . 1 1 . 1 Failed 9 | . 1 1 . . . . 1 . . . . . 2 . . 3 . . . . 1 Catastrophic 2 | . . . . . . . . . . . . . . . . 2 . . . . . Database Lockouts . | . . . . . . . . . . . . . . . . . . . . . . Manual 6 | . 2 . . 1 . . . . . . . . . . . 3 . . . . . Terminals 12 | . 3 2 . . . . 3 . . . . . 1 . . 3 . . . . . Fabricators 5 | . . . . . . . . . . . . . 3 . . 2 . . . . . Repair Stations 2 | . . . . . . . . . . . . . . . . 2 . . . . . Recycling Units . | . . . . . . . . . . . . . . . . . . . . . . Scanalyzers . | . . . . . . . . . . . . . . . . . . . . . . Garrison Access 4 | . . . . . . 1 1 . . . . . . . . . . . . . 2 Terminal Hacks 12 | . 1 1 . 2 . . 2 . . 1 . . 1 . . 2 . 1 1 . . Record 1 | . . . . 1 . . . . . . . . . . . . . . . . . Prototype ID Bank 2 | . . . . . . . . . . . . . . . . 2 . . . . . Open Door 5 | . . . . . . . 2 . . 1 . . . . . . . 1 1 . . Locate Traps 1 | . . 1 . . . . . . . . . . . . . . . . . . . Hauler Manifests 1 | . . . . . . . . . . . . . 1 . . . . . . . . Registered Components 1 | . 1 . . . . . . . . . . . . . . . . . . . . Proto ID Catalog 1 | . . . . 1 . . . . . . . . . . . . . . . . . Fabricator Hacks 1 | . . . . . . . . . . . . . 1 . . . . . . . . Network Status 1 | . . . . . . . . . . . . . 1 . . . . . . . . Repair Station Hacks 2 | . . . . . . . . . . . . . . . . 2 . . . . . Scan Component 1 | . . . . . . . . . . . . . . . . 1 . . . . . Repair 1 | . . . . . . . . . . . . . . . . 1 . . . . . Recycling Unit Hacks . | . . . . . . . . . . . . . . . . . . . . . . Scanalyzer . | . . . . . . . . . . . . . . . . . . . . . . Garrison Access Hacks 3 | . . . . . . 1 1 . . . . . . . . . . . . . 1 Seal Access 3 | . . . . . . 1 1 . . . . . . . . . . . . . 1 Unauthorized Hacks 1 | . 1 . . . . . . . . . . . . . . . . . . . . Terminals 1 | . 1 . . . . . . . . . . . . . . . . . . . . Operators 1 | . 1 . . . . . . . . . . . . . . . . . . . . Fabricators . | . . . . . . . . . . . . . . . . . . . . . . Repair Stations . | . . . . . . . . . . . . . . . . . . . . . . Recycling Units . | . . . . . . . . . . . . . . . . . . . . . . Scanalyzers . | . . . . . . . . . . . . . . . . . . . . . . Garrison Access . | . . . . . . . . . . . . . . . . . . . . . . Data Cores Recovered . | . . . . . . . . . . . . . . . . . . . . . . Used . | . . . . . . . . . . . . . . . . . . . . . . Hacking Detections 8 | . 1 1 . . . . 1 . . . . . 2 . . 3 . . . . . Full Trace Events . | . . . . . . . . . . . . . . . . . . . . . . Feedback Events . | . . . . . . . . . . . . . . . . . . . . . . Feedback Blocked . | . . . . . . . . . . . . . . . . . . . . . . Robot Schematics Acquired . | . . . . . . . . . . . . . . . . . . . . . . Robots Built . | . . . . . . . . . . . . . . . . . . . . . . Authchips . | . . . . . . . . . . . . . . . . . . . . . . Time . | . . . . . . . . . . . . . . . . . . . . . . Total Robot Build Rating . | . . . . . . . . . . . . . . . . . . . . . . Part Schematics Acquired . | . . . . . . . . . . . . . . . . . . . . . . Parts Built . | . . . . . . . . . . . . . . . . . . . . . . Authchips . | . . . . . . . . . . . . . . . . . . . . . . Time . | . . . . . . . . . . . . . . . . . . . . . . Total Part Build Rating . | . . . . . . . . . . . . . . . . . . . . . . Parts Repaired 1 | . . . . . . . . . . . . . . . . 1 . . . . . Time 38 | . . . . . . . . . . . . . . . . 38 . . . . . Parts Recycled . | . . . . . . . . . . . . . . . . . . . . . . Recycled Matter . | . . . . . . . . . . . . . . . . . . . . . . Retrieved Matter . | . . . . . . . . . . . . . . . . . . . . . . Retrieved Components . | . . . . . . . . . . . . . . . . . . . . . . Parts Scanalyzed . | . . . . . . . . . . . . . . . . . . . . . . Part Schematics Acquired . | . . . . . . . . . . . . . . . . . . . . . . Parts Damaged . | . . . . . . . . . . . . . . . . . . . . . . Bothacking | -11 -10 -9 -9 -9 -8 -8 -8 -7 -7 -7 -7 -6 -6 -6 -6 -5 -5 -5 -5 -4 -4 ------------ Run | Yrd Mat Mat Min Exi Min Mat Sto Fac Low Low Zio Pro Fac Low Low Fac Upp Upp War Pro Fac Used RIF Installer . | . . . . . . . . . . . . . . . . . . . . . . Robots Hacked . | . . . . . . . . . . . . . . . . . . . . . . Non-combat . | . . . . . . . . . . . . . . . . . . . . . . Combat . | . . . . . . . . . . . . . . . . . . . . . . Robot Hacks Applied . | . . . . . . . . . . . . . . . . . . . . . . Relay Couplers Released . | . . . . . . . . . . . . . . . . . . . . . . Fabnet Peak Effective % . | . . . . . . . . . . . . . . . . . . . . . . Robots Rewired . | . . . . . . . . . . . . . . . . . . . . . . Allies Hacked . | . . . . . . . . . . . . . . . . . . . . . . Hacks Repelled . | . . . . . . . . . . . . . . . . . . . . . . Allies | -11 -10 -9 -9 -9 -8 -8 -8 -7 -7 -7 -7 -6 -6 -6 -6 -5 -5 -5 -5 -4 -4 -------- Run | Yrd Mat Mat Min Exi Min Mat Sto Fac Low Low Zio Pro Fac Low Low Fac Upp Upp War Pro Fac Total Allies 12 | . . . . . . . 10 . . . . . 2 . . . . . . . . Largest Group 10 | . . . . . . . 10 2 . . . . 2 1 1 1 . . . . . Highest-Rated Group 173 | . . . . . . . 173 32 . . . . 52 24 24 24 . . . . . Highest-Rated Ally 29 | . . . . . . . 29 16 . . . . 26 24 24 24 . . . . . Total Orders 11 | . . . . . . . 1 1 . . . . 6 . . 2 . . . . 1 STAY 3 | . . . . . . . 1 1 . . . . 1 . . . . . . . . FOLLOW 1 | . . . . . . . . . . . . . 1 . . . . . . . . RETURN 7 | . . . . . . . . . . . . . 4 . . 2 . . . . 1 Ally Attacks 10 | . . . . . . . 2 8 . . . . . . . . . . . . . Total Damage 121 | . . . . . . . 35 86 . . . . . . . . . . . . . Kills 2 | . . . . . . . 1 1 . . . . . . . . . . . . . Allies Corrupted . | . . . . . . . . . . . . . . . . . . . . . . Allies Melted 1 | . . . . . . . . . . . . . . . . . . . 1 . . Intel | -11 -10 -9 -9 -9 -8 -8 -8 -7 -7 -7 -7 -6 -6 -6 -6 -5 -5 -5 -5 -4 -4 ------- Run | Yrd Mat Mat Min Exi Min Mat Sto Fac Low Low Zio Pro Fac Low Low Fac Upp Upp War Pro Fac Active Infowar (turns) 6007 | 90 206 2977 . . . . . . . . . . . 39 79 . 538 384 1319 362 13 IFF 2733 | . . . . . . . . . . . . . . 39 79 . 538 384 1319 362 12 Seismic 3274 | 90 206 2977 . . . . . . . . . . . . . . . . . . 1 Robot Analysis Total . | . . . . . . . . . . . . . . . . . . . . . . Derelict Logs Recovered 11 | . . . . . . . . . 1 1 2 2 . 1 . . 1 1 . 2 . Drone Launches 7 | . . . . . . . . . . . . . 4 . . 2 . . . . 1 Drone Recoveries 7 | . . . . . . . . . . . . . 4 . . 2 . . . . 1 Exploration | -11 -10 -9 -9 -9 -8 -8 -8 -7 -7 -7 -7 -6 -6 -6 -6 -5 -5 -5 -5 -4 -4 ------------- Run | Yrd Mat Mat Min Exi Min Mat Sto Fac Low Low Zio Pro Fac Low Low Fac Upp Upp War Pro Fac Turns Passed 24978 | 234 1242 5257 429 473 735 759 1029 1162 720 1094 2770 868 2085 439 90 1747 538 384 1477 495 951 Spaces Moved 9128 | 107 373 974 192 232 300 328 283 347 264 430 1110 306 916 248 54 866 331 228 625 267 347 Core 2 | 2 . . . . . . . . . . . . . . . . . . . . . Treads 3635 | 105 373 . . . . 81 283 347 264 430 1110 306 278 . . . . . . . 58 Legs 23 | . . . . . . . . . . . . . . . . . . . . . 23 Wheels 5468 | . . 974 192 232 300 247 . . . . . . 638 248 54 866 331 228 625 267 266 Hover . | . . . . . . . . . . . . . . . . . . . . . . Flight . | . . . . . . . . . . . . . . . . . . . . . . Fastest Speed 50 | 50 160 175 215 190 190 125 238 250 247 247 247 247 160 160 160 160 160 160 130 130 120 Average Speed 202 | 157 283 195 215 202 190 168 245 250 249 247 247 247 186 160 160 160 160 164 171 138 172 Slowest Speed 480 | 160 480 215 215 215 190 242 250 250 250 247 247 247 247 160 160 160 160 175 175 160 321 Overloaded Moves . | . . . . . . . . . . . . . . . . . . . . . . Propulsion Burnouts . | . . . . . . . . . . . . . . . . . . . . . . Robots Hopped . | . . . . . . . . . . . . . . . . . . . . . . Potential Cave-ins . | . . . . . . . . . . . . . . . . . . . . . . Cave-ins Triggered . | . . . . . . . . . . . . . . . . . . . . . . Exploration Rate (%) 47 | 7 71 84 67 64 47 39 62 14 49 69 81 52 22 46 8 20 52 36 76 59 10 Regions Visited 21 Branch Regions 14 Pre-discovered Areas 6 | . . . . 1 . . . . . 1 2 . . . . . 1 . . 1 . Known Exits Taken 6 | . . . . . . . . 1 1 1 . 1 1 . . . . 1 . . . Unknown Exits Taken 15 | 1 1 1 1 1 1 1 1 . . . 1 . . 1 1 1 1 . 1 1 . Scrap Searched 13 | . . . 1 . 2 . . . . 1 3 1 . 2 1 . 1 1 . . . Spaces Dug 54 | . . . . . . . 1 . 5 . . . 2 27 . 15 4 . . . . Terrain Destroyed 726 | . 24 75 . . . 27 66 . 12 6 . 63 4 54 . 88 6 1 104 70 126 Melee 17 | . . . . . . . 1 . . . . . 1 . . 15 . . . . . Projectile 108 | . . . . . . . . . . 6 . . 3 . . 13 6 1 7 14 58 AOE 601 | . 24 75 . . . 27 65 . 12 . . 63 . 54 . 60 . . 97 56 68 Terrain Rammed . | . . . . . . . . . . . . . . . . . . . . . . Walls Destroyed . | . . . . . . . . . . . . . . . . . . . . . . Machines Disabled . | . . . . . . . . . . . . . . . . . . . . . . Actions | -11 -10 -9 -9 -9 -8 -8 -8 -7 -7 -7 -7 -6 -6 -6 -6 -5 -5 -5 -5 -4 -4 --------- Run | Yrd Mat Mat Min Exi Min Mat Sto Fac Low Low Zio Pro Fac Low Low Fac Upp Upp War Pro Fac Total 14603 | 138 469 4218 197 235 396 456 518 616 293 444 1138 365 1212 274 56 1123 334 236 970 342 573 Wait 4260 | 4 27 3089 . . 61 26 122 233 . 3 . 18 201 5 1 115 1 8 280 33 33 Move 9107 | 106 372 973 191 231 299 327 282 346 263 429 1109 305 915 247 53 865 330 227 624 266 347 Hop . | . . . . . . . . . . . . . . . . . . . . . . Pick Up 121 | 4 14 28 . 1 1 9 6 6 2 . 3 1 8 1 . 13 . . 3 3 18 Fast Attach 63 | 7 1 8 . . . 16 2 1 1 . 10 . 2 . . 8 . . 2 1 4 Attach 71 | . . 4 . . 1 3 1 2 2 . . . 3 . . 3 . . 4 6 42 Detach 20 | . . 2 . . . . . . . . . . 1 . . . . . 2 . 15 Swap 193 | . 8 16 . 2 . 15 25 3 3 . 4 8 29 7 1 23 1 1 12 8 27 Drop 129 | . . 35 . 1 . 18 16 5 1 . 12 1 10 2 . 22 . . 6 . . Fire 590 | 17 46 62 6 . 34 41 59 20 21 12 . 31 36 9 . 53 2 . 37 25 79 Melee 34 | . . . . . . 1 1 . . . . . 7 3 1 21 . . . . . Ram 1 | . . 1 . . . . . . . . . . . . . . . . . . . Kick 1 | . . . . . . . . . . . . . . . . . . . . . 1 Crush 4 | . 1 . . . . . 2 . . . . . . . . . . . . . 1 Escape Stasis 8 | . . . . . . . 2 . . . . . . . . . . . . . 6 Rewire . | . . . . . . . . . . . . . . . . . . . . . . Trap 1 | . . . . . . . . . . . . 1 . . . . . . . . . Miscellaneous . | . . . . . . . . . . . . . . . . . . . . . . Route ------- -11/Scrapyard -10/Materials (discovered 4 exits: *Mat x3 / [*Sub]) -9/Materials (discovered 4 exits: *Mat x2 / [*Min x2]) -9/Mines (discovered 2 exits: *Mat / *Exi) -9/Exiles -8/Mines -8/Materials (discovered 2 exits: *Sto x2) -8/Storage -7/Factory -7/Lower Caves -7/Lower Caves (discovered 2 exits: *Fac / *Zio) -7/Zion (discovered 2 exits: Dee / [*Pro]) -6/Proximity Caves -6/Factory (discovered 3 exits: *Low x2 / Ext) -6/Lower Caves -6/Lower Caves -5/Factory -5/Upper Caves -5/Upper Caves -5/Warlord -4/Proximity Caves -4/Factory (discovered 1 exit: [*Res]) History --------- Turn | Location | Event 13 | -11/Scrapyard | Discovered new exit (range 14) 235 | -11/Scrapyard | Entered Materials 312 | -10/Materials | Build established: Mutant 613 | -10/Materials | Core integrity fell below 50% 660 | -10/Materials | Discovered new exit (range 15) 896 | -10/Materials | Discovered new exit (range 13) 1236 | -10/Materials | Discovered new exit (range 14) 1368 | -10/Materials | Discovered new exit (range 11) 1477 | -10/Materials | Entered another Materials area 1477 | -9/Materials | Evolved 2 slots: Propulsion x1, Weapon x1 1774 | -9/Materials | Destroyed 10 combat bots 2057 | -9/Materials | Build established: Gunner 5083 | -9/Materials | Discovered new exit (range 15) 5548 | -9/Materials | Discovered new exit (range 12) 5732 | -9/Materials | Build established: Scavenger-Gunner 5808 | -9/Materials | Discovered new exit (range 16) 6137 | -9/Materials | Build established: Scavenger-Tank 6502 | -9/Materials | Discovered new exit (range 3) 6677 | -9/Materials | First assault squad dispatched 6734 | -9/Materials | Entered Mines 7135 | -9/Mines | Discovered new exit (range 13) 7155 | -9/Mines | Deemed a non-threat by the Exiles lab entrance 7155 | -9/Mines | Discovered new exit (range 5) 7163 | -9/Mines | Entered Exiles 7215 | -9/Exiles | Met 8R-AWN 7249 | -9/Exiles | Met EX-HEX 7320 | -9/Exiles | Met EX-BIN 7351 | -9/Exiles | Aligned with FarCom system 7353 | -9/Exiles | Given EX-Vault access code 7402 | -9/Exiles | Opened EX-Vault 7420 | -9/Exiles | Found Firepult 7461 | -9/Exiles | Warned to stay clear of 0b10 Research branches 7510 | -9/Exiles | Met EX-DEC 7524 | -9/Exiles | Learned location of Zion (-7) 7613 | -9/Exiles | Discovered new exit (range 14) 7636 | -9/Exiles | Left Exiles lab with Firepult 7636 | -9/Exiles | Entered Mines 7931 | -8/Mines | Build established: Skirmisher 8349 | -8/Mines | Discovered new exit (range 9) 8371 | -8/Mines | Entered Materials 8371 | -8/Materials | Evolved 2 slots: Propulsion x1, Utility x1 8469 | -8/Materials | Garrison activated, responded to threat 8510 | -8/Materials | Destroyed 8 combat bots 8677 | -8/Materials | Build established: Scavenger-Skirmisher 8791 | -8/Materials | Discovered new exit (range 10) 8817 | -8/Materials | Met 7R-MNS 8876 | -8/Materials | Discovered new exit (range 14) 9130 | -8/Materials | Entered Storage 9358 | -8/Storage | Garrison activated, responded to threat 9757 | -8/Storage | Build established: Skirmisher 10014 | -8/Storage | Discovered new exit (range 16) 10046 | -8/Storage | Assisted by bots powering up and referring to "LRC-V3" 10159 | -8/Storage | Entered Factory 10159 | -7/Factory | Accompanied by 2 allies 10159 | -7/Factory | Evolved 2 slots: Utility x1, Weapon x1 11296 | -7/Factory | Discovered new exit (range 7) 11321 | -7/Factory | Identified exit to Lower Caves 11321 | -7/Factory | Entered Lower Caves 11496 | -7/Lower Caves | Spotted B-75 Beast 11529 | -7/Lower Caves | Destroyed B-75 Beast 11612 | -7/Lower Caves | Build established: Gunner 11840 | -7/Lower Caves | Learned location of 2 exits from Factory 12011 | -7/Lower Caves | Discovered new exit (range 10) 12038 | -7/Lower Caves | Identified exit to Lower Caves 12041 | -7/Lower Caves | Entered another Lower Caves area 12175 | -7/Lower Caves | Discovered new exit (range 8) 12190 | -7/Lower Caves | Identified exit to Factory 13105 | -7/Lower Caves | Discovered new exit (range 13) 13133 | -7/Lower Caves | Identified exit to Zion 13135 | -7/Lower Caves | Entered Zion 13177 | -7/Zion | Given the Hacking Drone Bay 13178 | -7/Zion | Found Prototype Device 13461 | -7/Zion | Visited the Megawrench Repair Shop 13492 | -7/Zion | Megawrench repaired 11 parts 13723 | -7/Zion | Identified exit to Deep Caves 13738 | -7/Zion | Learned Factory emergency access door positions 14184 | -7/Zion | Learned location of Warlord (-5) 14240 | -7/Zion | Found Prototype Processor 14240 | -7/Zion | Identified Exp. Armor Integrity Analyzer 14245 | -7/Zion | Found Prototype Processor 14245 | -7/Zion | Identified Exp. Core Analyzer 14256 | -7/Zion | Found Prototype Processor 14256 | -7/Zion | Identified Exp. Melee Analysis Suite 14304 | -7/Zion | Learned Factory emergency access door positions 14430 | -7/Zion | Learned location of Testing (-3) 14471 | -7/Zion | Found Prototype Energy Gun 14471 | -7/Zion | Identified Storm Laser 15207 | -7/Zion | Found GAL Module 15588 | -7/Zion | Discovered new exit (range 12) 15905 | -7/Zion | Entered Proximity Caves 16176 | -6/Proximity Caves | Learned Factory terminal intel 16708 | -6/Proximity Caves | Attracted the attention of an 0b10 checkpoint 16742 | -6/Proximity Caves | Discovered exit to Factory (range 13) 16773 | -6/Proximity Caves | Entered Factory 16773 | -6/Factory | Evolved 2 slots: Utility x2 16774 | -6/Factory | Identified exit to Extension 16775 | -6/Factory | Identified exit to Lower Caves 16777 | -6/Factory | Loaded intel: 28 terminal locations 16872 | -6/Factory | Identified Hacking Drone Bay 18858 | -6/Factory | Entered Lower Caves 18858 | -6/Lower Caves | Accompanied by 1 ally 18905 | -6/Lower Caves | Attacked by a faux Warlord 19073 | -6/Lower Caves | Encountered a Warlord checkpoint 19249 | -6/Lower Caves | Learned Factory non-interactive machine intel 19286 | -6/Lower Caves | Discovered new exit (range 5) 19297 | -6/Lower Caves | Entered another Lower Caves area 19297 | -6/Lower Caves | Accompanied by 1 ally 19355 | -6/Lower Caves | Discovered new exit (range 14) 19387 | -6/Lower Caves | Entered Factory 19387 | -5/Factory | Accompanied by 1 ally 19387 | -5/Factory | Evolved 2 slots: Utility x2 19389 | -5/Factory | Loaded intel: 215 non-interactive machine locations 19731 | -5/Factory | Repaired Arm. Treads 20739 | -5/Factory | Cargo convoy interrupted 21007 | -5/Factory | Discovered new exit (range 10) 21134 | -5/Factory | Entered Upper Caves 21622 | -5/Upper Caves | Encountered a Warlord checkpoint 21656 | -5/Upper Caves | Discovered new exit (range 11) 21672 | -5/Upper Caves | Entered another Upper Caves area 21832 | -5/Upper Caves | Identified exit to Warlord 22045 | -5/Upper Caves | Encountered a Warlord checkpoint 22056 | -5/Upper Caves | Entered Warlord 22114 | -5/Warlord | System corruption cleaned by Quarantine Array 22413 | -5/Warlord | Visited the Vortex Lab 22424 | -5/Warlord | Warlord's base attacked by MAIN.C 22483 | -5/Warlord | Found Prototype Device 22483 | -5/Warlord | Identified System Purifier 22491 | -5/Warlord | Found Prototype Device 22491 | -5/Warlord | Identified Exp. Phase Shifter 22499 | -5/Warlord | Found Prototype Processor 22499 | -5/Warlord | Identified Exp. Target Analyzer 22517 | -5/Warlord | Found Prototype Reactor 22774 | -5/Warlord | Warlord forces counterattacked 22786 | -5/Warlord | Met Warlord 23099 | -5/Warlord | Warlord base infiltrated, sounded retreat 23100 | -5/Warlord | Enhanced Grunt warped into view 23100 | -5/Warlord | Enhanced Grunt warped into view 23100 | -5/Warlord | Enhanced Grunt warped into view 23100 | -5/Warlord | Enhanced Demolisher warped into view 23100 | -5/Warlord | Enhanced Demolisher warped into view 23100 | -5/Warlord | Enhanced Demolisher warped into view 23228 | -5/Warlord | Lost 3 allies 23253 | -5/Warlord | Spotted Executioner 23297 | -5/Warlord | Lost 7 allies 23305 | -5/Warlord | Spotted Striker 23342 | -5/Warlord | Spotted Executioner 23348 | -5/Warlord | Destroyed Executioner 23358 | -5/Warlord | Spotted Striker 23366 | -5/Warlord | Spotted Executioner 23366 | -5/Warlord | Destroyed Executioner 23385 | -5/Warlord | Spotted Executioner 23391 | -5/Warlord | Destroyed 11 combat bots 23501 | -5/Warlord | Lost 3 parts (2u1w) 23503 | -5/Warlord | Destroyed 7 combat bots 23520 | -5/Warlord | Discovered new exit (range 12) 23533 | -5/Warlord | Entered Proximity Caves 23756 | -4/Proximity Caves | Learned 8 Research zone layouts 23806 | -4/Proximity Caves | Attracted the attention of an 0b10 outpost 23895 | -4/Proximity Caves | Destroyed 7 combat bots 23895 | -4/Proximity Caves | Lost 7 parts (1p1n3u2w) 23973 | -4/Proximity Caves | Discovered new exit (range 11) 23996 | -4/Proximity Caves | Learned location of Armory (-3) 24028 | -4/Proximity Caves | Entered Factory 24028 | -4/Factory | Evolved 2 slots: Power x1, Propulsion x1 24028 | -4/Factory | Identified Vortex Chain Reactor 24304 | -4/Factory | Spotted B-86 Titan 24322 | -4/Factory | Destroyed B-86 Titan 24345 | -4/Factory | Build established: Tank 24555 | -4/Factory | Garrison activated, responded to threat 24593 | -4/Factory | Destroyed 11 combat bots 24633 | -4/Factory | Destroyed 7 combat bots 24639 | -4/Factory | Lost 7 parts (2n3u2w) 24679 | -4/Factory | Build established: Gunner 24691 | -4/Factory | Cargo convoy interrupted 24727 | -4/Factory | Discovered new exit (range 15) 24739 | -4/Factory | Destroyed 9 combat bots 24778 | -4/Factory | First assault squad dispatched 24806 | -4/Factory | Lost 10 parts (1p5n3u1w) 24904 | -4/Factory | System corruption reached 10% 24923 | -4/Factory | Core integrity fell below 50% 24963 | -4/Factory | Core integrity fell below 20% 24979 | -4/Factory | Destroyed by G-73 Enforcer with Phase Gun Last Messages --------------- 24973_ Flexi-carbon Leg melted. 24973_ Adv. Heat Sink melted. 24973_ B-60 Warrior heat spikes uncontrollably. 24973_ B-60 Warrior critical meltdown. 24973_ Unknown Impact Weapon melted. 24974_ U-05 Engineer lays Concrete. 24974_ ALERT: Suspicious intruders detected, dispatching Specialist reinforcements to area. 24975_ U-05 Engineer lays Concrete. 24978_ U-05 Engineer destroyed. 24978_ Structural Scanner melted. 24978_ Terrain Scanner melted. 24978_ U-05 Engineer destroyed. 24978_ G-67 Veteran critical meltdown. 24978_ Adv. Heat Sink melted. 24978_ Terrain Scanner melted. 24978_ U-05 Engineer destroyed. 24978_ Destroyed Lgt. Ion Engine. 24979_ G-67 Veteran heat short circuits Field Laser. Map ----- +----------------------------------------------------+ | ?????????????????????????????????????????????????? | | ??????????????????????????????????????????????? ?? | | ??????????????????????????????????????????????? ?? | | ??????????????????????????????????????????????? ?? | | ??????????????????????????????????????????????# ?? | | ?????????????????????????????